[Event "Early-Titled-Tuesday-Blitz-October-17-2023"]
[Site "Chess.com"]
[Date "2023.10.17"]
[Round "9"]
[White "MDBIchess"]
[Black "Manukyan_Artak"]
[Result "1-0"]
[WhiteElo "2375"]
[BlackElo "2455"]
[TimeControl "180+1"]
[EndTime "9:46:53 PDT"]
[Termination "MDBIchess won by resignation"]

1. d4 {[%clk 0:03:00.9]} 1... Nf6 {[%clk 0:02:58.3]} 2. Nf3 {[%clk 0:02:56.7]}
2... d5 {[%clk 0:02:58.2]} 3. Bg5 {[%clk 0:02:54.4]} 3... Ne4 {[%clk 0:02:58]}
4. Bf4 {[%clk 0:02:51.8]} 4... c5 {[%clk 0:02:58.4]} 5. e3 {[%clk 0:02:51.8]}
5... Qb6 {[%clk 0:02:57.9]} 6. Nc3 {[%clk 0:02:43.5]} 6... Nxc3 {[%clk
0:02:53.6]} 7. bxc3 {[%clk 0:02:43.7]} 7... c4 {[%clk 0:02:53.5]} 8. Be2 {[%clk
0:02:37.9]} 8... Bf5 {[%clk 0:02:49.7]} 9. O-O {[%clk 0:02:34.1]} 9... Nc6
{[%clk 0:02:45.1]} 10. Ne5 {[%clk 0:02:30.2]} 10... e6 {[%clk 0:02:41]} 11. Qd2
{[%clk 0:02:08.4]} 11... Nxe5 {[%clk 0:02:35]} 12. Bxe5 {[%clk 0:02:07.6]} 12...
f6 {[%clk 0:02:34.1]} 13. Bg3 {[%clk 0:02:07.6]} 13... Bd6 {[%clk 0:02:32.6]}
14. Bf3 {[%clk 0:02:07.2]} 14... Bxg3 {[%clk 0:02:28]} 15. hxg3 {[%clk
0:02:08.1]} 15... O-O {[%clk 0:02:25.9]} 16. Rfe1 {[%clk 0:02:08.1]} 16... Bg6
{[%clk 0:02:13.3]} 17. e4 {[%clk 0:02:08.1]} 17... dxe4 {[%clk 0:02:02.8]} 18.
Bxe4 {[%clk 0:02:09]} 18... Bxe4 {[%clk 0:02:01.2]} 19. Rxe4 {[%clk 0:02:09.9]}
19... Rfe8 {[%clk 0:02:02]} 20. Rae1 {[%clk 0:02:08.1]} 20... Re7 {[%clk
0:01:53.6]} 21. Qe2 {[%clk 0:02:06.7]} 21... Qa6 {[%clk 0:01:31.6]} 22. Rxe6
{[%clk 0:02:00.6]} 22... Rxe6 {[%clk 0:01:32]} 23. Qxe6+ {[%clk 0:02:01.5]}
23... Qxe6 {[%clk 0:01:32.3]} 24. Rxe6 {[%clk 0:02:02.4]} 24... Kf7 {[%clk
0:01:33.2]} 25. Re1 {[%clk 0:01:54.8]} 25... Rc8 {[%clk 0:01:30.5]} 26. f3
{[%clk 0:01:52.7]} 26... Rc6 {[%clk 0:01:27.9]} 27. Rb1 {[%clk 0:01:52.8]} 27...
b6 {[%clk 0:01:26.2]} 28. Kf2 {[%clk 0:01:52]} 28... Ke6 {[%clk 0:01:22.5]} 29.
a4 {[%clk 0:01:51.7]} 29... a6 {[%clk 0:01:19.4]} 30. a5 {[%clk 0:01:44.4]}
30... b5 {[%clk 0:01:19.4]} 31. Re1+ {[%clk 0:01:43.8]} 31... Kd7 {[%clk
0:01:19.7]} 32. Rh1 {[%clk 0:01:40.3]} 32... h6 {[%clk 0:01:19.9]} 33. Re1
{[%clk 0:01:40.9]} 33... Rd6 {[%clk 0:01:12.7]} 34. g4 {[%clk 0:01:38.6]} 34...
Re6 {[%clk 0:00:43.1]} 35. Rxe6 {[%clk 0:01:31.7]} 35... Kxe6 {[%clk 0:00:44]}
36. Ke3 {[%clk 0:01:31.3]} 36... g5 {[%clk 0:00:44.2]} 37. Ke4 {[%clk
0:01:31.3]} 37... h5 {[%clk 0:00:34.4]} 38. gxh5 {[%clk 0:01:27.2]} 38... f5+
{[%clk 0:00:34.8]} 39. Ke3 {[%clk 0:01:27.8]} 39... Kf6 {[%clk 0:00:34.6]} 40.
d5 {[%clk 0:01:27.9]} 40... Ke5 {[%clk 0:00:34]} 41. h6 {[%clk 0:01:28.1]} 1-0

[Event "Early-Titled-Tuesday-Blitz-October-17-2023"]
[Site "Chess.com"]
[Date "2023.10.17"]
[Round "9"]
[White "Kostukov_Alex"]
[Black "amelia91"]
[Result "1-0"]
[WhiteElo "2375"]
[BlackElo "2182"]
[TimeControl "180+1"]
[EndTime "9:46:56 PDT"]
[Termination "Kostukov_Alex won by checkmate"]

1. g3 {[%clk 0:02:57.4]} 1... d5 {[%clk 0:02:57]} 2. Bg2 {[%clk 0:02:55.8]} 2...
e5 {[%clk 0:02:57.1]} 3. c4 {[%clk 0:02:55.3]} 3... c6 {[%clk 0:02:55.9]} 4.
cxd5 {[%clk 0:02:55.4]} 4... cxd5 {[%clk 0:02:56.2]} 5. d4 {[%clk 0:02:56]} 5...
e4 {[%clk 0:02:54.5]} 6. Nc3 {[%clk 0:02:56.1]} 6... Nf6 {[%clk 0:02:54.5]} 7.
Bg5 {[%clk 0:02:55.8]} 7... Be7 {[%clk 0:02:51.2]} 8. Nh3 {[%clk 0:02:55.7]}
8... h6 {[%clk 0:02:44]} 9. Bxf6 {[%clk 0:02:55]} 9... Bxf6 {[%clk 0:02:44.9]}
10. Nf4 {[%clk 0:02:54.9]} 10... Nc6 {[%clk 0:02:42.1]} 11. e3 {[%clk
0:02:41.1]} 11... Ne7 {[%clk 0:02:25.4]} 12. Qb3 {[%clk 0:02:38.8]} 12... Be6
{[%clk 0:02:18.7]} 13. O-O {[%clk 0:02:16.8]} 13... O-O {[%clk 0:02:15.5]} 14.
Nxe6 {[%clk 0:02:15.9]} 14... fxe6 {[%clk 0:02:15.1]} 15. Qxb7 {[%clk
0:02:16.3]} 15... Rb8 {[%clk 0:02:14]} 16. Qxa7 {[%clk 0:02:06.5]} 16... Rxb2
{[%clk 0:02:14.5]} 17. Rab1 {[%clk 0:01:56.5]} 17... Qb8 {[%clk 0:02:10.1]} 18.
Qa6 {[%clk 0:01:39.2]} 18... Kf7 {[%clk 0:01:55.2]} 19. Bh3 {[%clk 0:01:36.4]}
19... Nf5 {[%clk 0:01:55.1]} 20. Bxf5 {[%clk 0:01:30.9]} 20... exf5 {[%clk
0:01:50.5]} 21. Rxb2 {[%clk 0:01:30.4]} 21... Qxb2 {[%clk 0:01:50.6]} 22. Nxd5
{[%clk 0:01:30.1]} 22... Rb8 {[%clk 0:01:45.4]} 23. Nxf6 {[%clk 0:01:23.4]}
23... gxf6 {[%clk 0:01:46.3]} 24. a4 {[%clk 0:01:09.4]} 24... Kg6 {[%clk
0:01:44.6]} 25. Qe6 {[%clk 0:01:01.9]} 25... Qa3 {[%clk 0:01:40.2]} 26. g4
{[%clk 0:01:00.8]} 26... fxg4 {[%clk 0:01:35.5]} 27. Qxg4+ {[%clk 0:01:00.4]}
27... Kf7 {[%clk 0:01:35.4]} 28. Qxe4 {[%clk 0:01:00.1]} 28... Qxa4 {[%clk
0:01:35.1]} 29. Qd5+ {[%clk 0:00:55.2]} 29... Ke7 {[%clk 0:01:33.4]} 30. Rc1
{[%clk 0:00:51.1]} 30... Qa7 {[%clk 0:01:18.1]} 31. Rc6 {[%clk 0:00:43.1]} 31...
Rf8 {[%clk 0:00:52.7]} 32. Qe6+ {[%clk 0:00:32.2]} 32... Kd8 {[%clk 0:00:52.2]}
33. Rc8# {[%clk 0:00:32.3]} 1-0

[Event "Early-Titled-Tuesday-Blitz-October-17-2023"]
[Site "Chess.com"]
[Date "2023.10.17"]
[Round "9"]
[White "ajedrezhoy"]
[Black "cycygogne"]
[Result "1-0"]
[WhiteElo "2381"]
[BlackElo "2268"]
[TimeControl "180+1"]
[EndTime "9:47:08 PDT"]
[Termination "ajedrezhoy won by resignation"]

1. Nf3 {[%clk 0:03:00.9]} 1... c5 {[%clk 0:02:48.5]} 2. g3 {[%clk 0:02:59.4]}
2... Nc6 {[%clk 0:02:47.8]} 3. Bg2 {[%clk 0:02:59.3]} 3... g6 {[%clk 0:02:48.5]}
4. O-O {[%clk 0:02:58.7]} 4... Bg7 {[%clk 0:02:49]} 5. c4 {[%clk 0:02:53.5]}
5... e5 {[%clk 0:02:48]} 6. d3 {[%clk 0:02:51.6]} 6... Nge7 {[%clk 0:02:47.9]}
7. Nc3 {[%clk 0:02:51.6]} 7... O-O {[%clk 0:02:47.8]} 8. a3 {[%clk 0:02:51.6]}
8... d6 {[%clk 0:02:47.6]} 9. Rb1 {[%clk 0:02:51.2]} 9... a5 {[%clk 0:02:47.1]}
10. Ne1 {[%clk 0:02:50.7]} 10... f5 {[%clk 0:02:45.8]} 11. Nc2 {[%clk
0:02:50.3]} 11... f4 {[%clk 0:02:35.5]} 12. b4 {[%clk 0:02:38.8]} 12... axb4
{[%clk 0:02:25.7]} 13. axb4 {[%clk 0:02:38.5]} 13... cxb4 {[%clk 0:02:11.9]} 14.
Nxb4 {[%clk 0:02:37.9]} 14... Nxb4 {[%clk 0:02:12]} 15. Rxb4 {[%clk 0:02:37.3]}
15... Nc6 {[%clk 0:02:12.3]} 16. Rb1 {[%clk 0:02:30.6]} 16... Nd4 {[%clk
0:02:02.1]} 17. e3 {[%clk 0:02:01.4]} 17... Ne6 {[%clk 0:01:55.9]} 18. Nd5
{[%clk 0:01:59.2]} 18... Kh8 {[%clk 0:01:49.9]} 19. exf4 {[%clk 0:01:54.2]}
19... exf4 {[%clk 0:01:49.4]} 20. Nxf4 {[%clk 0:01:54]} 20... Bd4 {[%clk
0:01:35.7]} 21. Nxe6 {[%clk 0:01:50]} 21... Bxe6 {[%clk 0:01:36.6]} 22. Bb2
{[%clk 0:01:38.4]} 22... Qf6 {[%clk 0:01:34.4]} 23. Bxd4 {[%clk 0:01:35.4]}
23... Qxd4 {[%clk 0:01:35.3]} 24. Qe2 {[%clk 0:01:27.6]} 24... Bf5 {[%clk
0:01:33.8]} 25. Be4 {[%clk 0:01:09.7]} 25... Rae8 {[%clk 0:01:29.1]} 26. Rfe1
{[%clk 0:01:04.9]} 26... h5 {[%clk 0:01:14.5]} 27. Qb2 {[%clk 0:01:00.3]} 27...
Qe5 {[%clk 0:01:07.2]} 28. Qxe5+ {[%clk 0:00:58.5]} 28... Rxe5 {[%clk
0:01:08.1]} 29. Bxf5 {[%clk 0:00:31.8]} 29... Rexf5 {[%clk 0:01:00.3]} 30. f4
{[%clk 0:00:31.4]} 30... g5 {[%clk 0:00:59.8]} 31. fxg5 {[%clk 0:00:28.6]} 31...
Rf2 {[%clk 0:00:59.8]} 32. Rxb7 {[%clk 0:00:25.2]} 32... Rd2 {[%clk 0:00:58.4]}
33. g6 {[%clk 0:00:24.1]} 33... Rxd3 {[%clk 0:00:54.1]} 34. g7+ {[%clk
0:00:23.4]} 1-0

[Event "Early-Titled-Tuesday-Blitz-October-17-2023"]
[Site "Chess.com"]
[Date "2023.10.17"]
[Round "9"]
[White "lluiss"]
[Black "Akylbek2021"]
[Result "1-0"]
[WhiteElo "2153"]
[BlackElo "2259"]
[TimeControl "180+1"]
[EndTime "9:47:08 PDT"]
[Termination "lluiss won by resignation"]

1. Nf3 {[%clk 0:03:00.9]} 1... Nf6 {[%clk 0:02:48.2]} 2. d4 {[%clk 0:03:00.4]}
2... e6 {[%clk 0:02:45.6]} 3. Bf4 {[%clk 0:02:55.7]} 3... c5 {[%clk 0:02:43.4]}
4. e3 {[%clk 0:02:48.1]} 4... d5 {[%clk 0:02:43.2]} 5. Nbd2 {[%clk 0:02:41.2]}
5... Nc6 {[%clk 0:02:43.2]} 6. h3 {[%clk 0:02:40.5]} 6... Bd6 {[%clk 0:02:42.1]}
7. Bxd6 {[%clk 0:02:37.9]} 7... Qxd6 {[%clk 0:02:42.7]} 8. c3 {[%clk 0:02:37.8]}
8... O-O {[%clk 0:02:41.8]} 9. Be2 {[%clk 0:02:36.2]} 9... Rb8 {[%clk
0:02:41.1]} 10. O-O {[%clk 0:02:35.2]} 10... b5 {[%clk 0:02:41.5]} 11. dxc5
{[%clk 0:02:32.1]} 11... Qxc5 {[%clk 0:02:41.7]} 12. Nd4 {[%clk 0:02:33]} 12...
Nxd4 {[%clk 0:02:28.3]} 13. cxd4 {[%clk 0:02:31.6]} 13... Qd6 {[%clk 0:02:23.6]}
14. Nb3 {[%clk 0:02:29.1]} 14... Nd7 {[%clk 0:02:16.9]} 15. Rc1 {[%clk 0:02:11]}
15... Qb6 {[%clk 0:02:12.6]} 16. Nc5 {[%clk 0:02:10.4]} 16... a5 {[%clk
0:02:09.1]} 17. a3 {[%clk 0:01:56]} 17... b4 {[%clk 0:02:04.7]} 18. Qd2 {[%clk
0:01:55.9]} 18... bxa3 {[%clk 0:01:49.2]} 19. bxa3 {[%clk 0:01:55.2]} 19... Qb2
{[%clk 0:01:49.2]} 20. Qxb2 {[%clk 0:01:52.3]} 20... Rxb2 {[%clk 0:01:50.1]} 21.
Rfe1 {[%clk 0:01:25.9]} 21... Nb6 {[%clk 0:01:25.6]} 22. Rc3 {[%clk 0:01:13.7]}
22... Bd7 {[%clk 0:01:23.1]} 23. Ba6 {[%clk 0:00:43.3]} 23... Rb8 {[%clk
0:01:13.7]} 24. Rec1 {[%clk 0:00:37.6]} 24... Kf8 {[%clk 0:01:08.1]} 25. Nxd7+
{[%clk 0:00:27.4]} 25... Nxd7 {[%clk 0:01:09]} 26. Rc8+ {[%clk 0:00:24.5]} 26...
Rxc8 {[%clk 0:01:09.1]} 27. Rxc8+ {[%clk 0:00:23.5]} 27... Ke7 {[%clk 0:01:10]}
28. Rc3 {[%clk 0:00:18.6]} 28... Kd6 {[%clk 0:01:05.6]} 29. a4 {[%clk
0:00:16.6]} 29... Nb6 {[%clk 0:01:04.4]} 30. Bb5 {[%clk 0:00:16.4]} 30... Rb4
{[%clk 0:01:04.6]} 31. Rc6+ {[%clk 0:00:16.3]} 31... Ke7 {[%clk 0:00:59.1]} 32.
Rxb6 {[%clk 0:00:17.2]} 1-0

[Event "Early-Titled-Tuesday-Blitz-October-17-2023"]
[Site "Chess.com"]
[Date "2023.10.17"]
[Round "9"]
[White "Keeper0416"]
[Black "lamomiajunior"]
[Result "1-0"]
[WhiteElo "2614"]
[BlackElo "2720"]
[TimeControl "180+1"]
[EndTime "9:47:11 PDT"]
[Termination "Keeper0416 won by resignation"]

1. Nf3 {[%clk 0:02:59.6]} 1... d5 {[%clk 0:02:59.8]} 2. c4 {[%clk 0:02:59]} 2...
e6 {[%clk 0:02:59.5]} 3. b3 {[%clk 0:02:58.6]} 3... d4 {[%clk 0:02:57.5]} 4. e3
{[%clk 0:02:56.4]} 4... c5 {[%clk 0:02:57.6]} 5. exd4 {[%clk 0:02:53.1]} 5...
cxd4 {[%clk 0:02:58.5]} 6. g3 {[%clk 0:02:53.6]} 6... Nc6 {[%clk 0:02:58.9]} 7.
Bg2 {[%clk 0:02:53.6]} 7... Nf6 {[%clk 0:02:57.9]} 8. O-O {[%clk 0:02:53.8]}
8... Bd6 {[%clk 0:02:58.5]} 9. d3 {[%clk 0:02:51.9]} 9... e5 {[%clk 0:02:58.7]}
10. Re1 {[%clk 0:02:44.8]} 10... O-O {[%clk 0:02:55.3]} 11. Ba3 {[%clk
0:02:44.3]} 11... h6 {[%clk 0:02:52.7]} 12. c5 {[%clk 0:02:35.3]} 12... Bc7
{[%clk 0:02:52.2]} 13. b4 {[%clk 0:02:35.3]} 13... a6 {[%clk 0:02:52.2]} 14.
Nbd2 {[%clk 0:02:35]} 14... Re8 {[%clk 0:02:51.8]} 15. Nc4 {[%clk 0:02:32.6]}
15... Nd5 {[%clk 0:02:51.7]} 16. Qb3 {[%clk 0:02:17.4]} 16... Be6 {[%clk
0:02:50.6]} 17. Rac1 {[%clk 0:02:11.4]} 17... f6 {[%clk 0:02:47.1]} 18. Nfd2
{[%clk 0:02:06]} 18... Nc3 {[%clk 0:02:43]} 19. Bb2 {[%clk 0:02:00.9]} 19... a5
{[%clk 0:02:32.8]} 20. Bxc3 {[%clk 0:00:58]} 20... dxc3 {[%clk 0:02:32.3]} 21.
Rxc3 {[%clk 0:00:58.6]} 21... axb4 {[%clk 0:02:30.4]} 22. Rcc1 {[%clk 0:00:59]}
22... Ra3 {[%clk 0:02:18.6]} 23. Qb1 {[%clk 0:00:36.3]} 23... Rxd3 {[%clk
0:02:18.2]} 24. Bxc6 {[%clk 0:00:36]} 24... bxc6 {[%clk 0:02:18.3]} 25. Ne4
{[%clk 0:00:36.9]} 25... Bf5 {[%clk 0:01:58.6]} 26. Ncd6 {[%clk 0:00:26.5]}
26... Bxd6 {[%clk 0:01:58.7]} 27. Qxd3 {[%clk 0:00:25.8]} 27... Be7 {[%clk
0:01:46.8]} 28. Nxf6+ {[%clk 0:00:23.8]} 28... Bxf6 {[%clk 0:01:47.3]} 29. Qxf5
{[%clk 0:00:24.7]} 29... Qd5 {[%clk 0:01:45.2]} 30. Rc2 {[%clk 0:00:20.3]} 30...
Ra8 {[%clk 0:01:42.4]} 31. Qe4 {[%clk 0:00:20.1]} 31... Qe6 {[%clk 0:01:40.5]}
32. Qxb4 {[%clk 0:00:13.1]} 32... Rxa2 {[%clk 0:01:40.6]} 33. Rxa2 {[%clk
0:00:13.4]} 33... Qxa2 {[%clk 0:01:40.6]} 34. Qb8+ {[%clk 0:00:12]} 34... Kh7
{[%clk 0:01:36.4]} 35. Qb1+ {[%clk 0:00:11.9]} 35... Qxb1 {[%clk 0:01:36.4]} 36.
Rxb1 {[%clk 0:00:12.8]} 36... Be7 {[%clk 0:01:37.3]} 37. Rb6 {[%clk 0:00:11.2]}
37... Bxc5 {[%clk 0:01:36.6]} 38. Rxc6 {[%clk 0:00:11.9]} 38... Bd4 {[%clk
0:01:37.5]} 39. Kg2 {[%clk 0:00:11.9]} 39... Kg8 {[%clk 0:01:38.2]} 40. f3
{[%clk 0:00:12.5]} 40... Kf7 {[%clk 0:01:38.3]} 41. Kf1 {[%clk 0:00:13]} 41...
Ke7 {[%clk 0:01:39]} 42. Ke2 {[%clk 0:00:10.7]} 42... Bg1 {[%clk 0:01:39.3]} 43.
h4 {[%clk 0:00:11.1]} 43... Bh2 {[%clk 0:01:40.1]} 44. g4 {[%clk 0:00:11.5]}
44... Bf4 {[%clk 0:01:40.1]} 45. h5 {[%clk 0:00:11.6]} 45... Kd7 {[%clk
0:01:39.6]} 46. Rg6 {[%clk 0:00:12.2]} 46... Ke7 {[%clk 0:01:39]} 47. Rxg7+
{[%clk 0:00:12.4]} 47... Kf6 {[%clk 0:01:39.7]} 48. Rg6+ {[%clk 0:00:13.3]}
48... Kf7 {[%clk 0:01:40.5]} 49. Kd3 {[%clk 0:00:14.2]} 1-0

[Event "Early-Titled-Tuesday-Blitz-October-17-2023"]
[Site "Chess.com"]
[Date "2023.10.17"]
[Round "9"]
[White "PowerThinking2650"]
[Black "AndresDelgado77"]
[Result "1-0"]
[WhiteElo "2481"]
[BlackElo "2336"]
[TimeControl "180+1"]
[EndTime "9:47:13 PDT"]
[Termination "PowerThinking2650 won by resignation"]

1. e4 {[%clk 0:03:00.9]} 1... e6 {[%clk 0:02:55]} 2. d4 {[%clk 0:03:00.4]} 2...
d5 {[%clk 0:02:54.3]} 3. Nd2 {[%clk 0:03:01.1]} 3... Nc6 {[%clk 0:02:49.7]} 4.
Ngf3 {[%clk 0:02:58]} 4... Nf6 {[%clk 0:02:46.4]} 5. e5 {[%clk 0:02:58.2]} 5...
Nd7 {[%clk 0:02:44.5]} 6. Be2 {[%clk 0:02:55.1]} 6... f6 {[%clk 0:02:44]} 7.
exf6 {[%clk 0:02:55]} 7... Qxf6 {[%clk 0:02:44.3]} 8. Nf1 {[%clk 0:02:54.4]}
8... e5 {[%clk 0:02:44]} 9. Ne3 {[%clk 0:02:52.4]} 9... e4 {[%clk 0:02:29.8]}
10. Nxd5 {[%clk 0:02:36]} 10... Qd6 {[%clk 0:02:29.1]} 11. c4 {[%clk 0:02:31.6]}
11... exf3 {[%clk 0:02:07.3]} 12. Bf4 {[%clk 0:02:20.3]} 12... fxg2 {[%clk
0:01:55.1]} 13. Rg1 {[%clk 0:02:03.2]} 13... Qxf4 {[%clk 0:01:53.2]} 14. Bh5+
{[%clk 0:01:55.8]} 14... Qf7 {[%clk 0:00:29.1]} 15. Bxf7+ {[%clk 0:01:53.7]}
15... Kxf7 {[%clk 0:00:28.9]} 16. Qf3+ {[%clk 0:01:39.1]} 16... Nf6 {[%clk
0:00:28.3]} 17. O-O-O {[%clk 0:01:39.2]} 17... Bg4 {[%clk 0:00:26]} 18. Qf4
{[%clk 0:01:33]} 18... Bd6 {[%clk 0:00:24.7]} 19. Qg5 {[%clk 0:01:28.7]} 19...
h6 {[%clk 0:00:20.7]} 20. Qd2 {[%clk 0:01:19.1]} 20... Bxd1 {[%clk 0:00:11.7]}
21. Qxd1 {[%clk 0:01:16.5]} 21... Nxd5 {[%clk 0:00:10.6]} 22. Qh5+ {[%clk
0:01:16.2]} 22... Kg8 {[%clk 0:00:09.8]} 23. Qxd5+ {[%clk 0:01:16.1]} 23... Kh7
{[%clk 0:00:10]} 24. Qf5+ {[%clk 0:01:08.6]} 24... Kg8 {[%clk 0:00:08.7]} 25. c5
{[%clk 0:01:07.5]} 25... Be7 {[%clk 0:00:06.4]} 26. Rxg2 {[%clk 0:01:01.1]}
26... Rf8 {[%clk 0:00:04.1]} 27. Qe6+ {[%clk 0:01:01.1]} 27... Kh7 {[%clk
0:00:04.5]} 28. Qg6+ {[%clk 0:01:01.1]} 1-0

[Event "Early-Titled-Tuesday-Blitz-October-17-2023"]
[Site "Chess.com"]
[Date "2023.10.17"]
[Round "9"]
[White "guillembaches"]
[Black "InitiatingASC"]
[Result "1-0"]
[WhiteElo "2510"]
[BlackElo "2358"]
[TimeControl "180+1"]
[EndTime "9:47:14 PDT"]
[Termination "guillembaches won by resignation"]

1. d4 {[%clk 0:03:00.9]} 1... f5 {[%clk 0:02:58.6]} 2. Nf3 {[%clk 0:02:59]} 2...
d6 {[%clk 0:02:52.9]} 3. Bf4 {[%clk 0:02:58.3]} 3... g6 {[%clk 0:02:52.1]} 4. e3
{[%clk 0:02:56.7]} 4... Bg7 {[%clk 0:02:52.5]} 5. h3 {[%clk 0:02:56.1]} 5... e6
{[%clk 0:02:52.7]} 6. c3 {[%clk 0:02:55.2]} 6... Ne7 {[%clk 0:02:51.5]} 7. Bc4
{[%clk 0:02:54.8]} 7... O-O {[%clk 0:02:51]} 8. Nbd2 {[%clk 0:02:52.8]} 8... Kh8
{[%clk 0:02:51]} 9. Qb3 {[%clk 0:02:46.5]} 9... d5 {[%clk 0:02:32.1]} 10. Bd3
{[%clk 0:02:45.6]} 10... Nd7 {[%clk 0:02:31.1]} 11. h4 {[%clk 0:02:41.9]} 11...
h6 {[%clk 0:02:29.6]} 12. O-O-O {[%clk 0:02:34.6]} 12... c5 {[%clk 0:02:23.3]}
13. c4 {[%clk 0:02:23.5]} 13... Qb6 {[%clk 0:02:13.9]} 14. Kb1 {[%clk
0:01:57.4]} 14... Qxb3 {[%clk 0:02:07]} 15. Nxb3 {[%clk 0:01:54]} 15... cxd4
{[%clk 0:02:02]} 16. exd4 {[%clk 0:01:50]} 16... dxc4 {[%clk 0:02:01.7]} 17.
Bxc4 {[%clk 0:01:49.7]} 17... Nb6 {[%clk 0:02:02]} 18. Bd3 {[%clk 0:01:40.3]}
18... Nbd5 {[%clk 0:01:52.9]} 19. Bd2 {[%clk 0:01:28.7]} 19... Rd8 {[%clk
0:01:45.6]} 20. Rhe1 {[%clk 0:01:28]} 20... b6 {[%clk 0:01:24.2]} 21. Bc4 {[%clk
0:01:19.2]} 21... Kg8 {[%clk 0:01:11.1]} 22. Rc1 {[%clk 0:01:14.9]} 22... Kf7
{[%clk 0:01:10.7]} 23. Ne5+ {[%clk 0:01:12.1]} 23... Bxe5 {[%clk 0:00:57.4]} 24.
Rxe5 {[%clk 0:01:13]} 24... f4 {[%clk 0:00:57.8]} 25. g3 {[%clk 0:01:05.1]}
25... Nc6 {[%clk 0:00:43.8]} 26. Bxd5 {[%clk 0:00:54.2]} 26... Nxe5 {[%clk
0:00:41.8]} 27. Bxa8 {[%clk 0:00:54.3]} 27... Nd3 {[%clk 0:00:41.9]} 28. Rc7+
{[%clk 0:00:48.4]} 28... Kf6 {[%clk 0:00:41.4]} 29. Bxf4 {[%clk 0:00:45.2]}
29... Nxf4 {[%clk 0:00:39.6]} 30. gxf4 {[%clk 0:00:43.7]} 30... Ba6 {[%clk
0:00:40.5]} 31. Be4 {[%clk 0:00:40.3]} 1-0

[Event "Early-Titled-Tuesday-Blitz-October-17-2023"]
[Site "Chess.com"]
[Date "2023.10.17"]
[Round "9"]
[White "karinachess1"]
[Black "Mystery2007"]
[Result "1-0"]
[WhiteElo "2617"]
[BlackElo "2468"]
[TimeControl "180+1"]
[EndTime "9:47:22 PDT"]
[Termination "karinachess1 won by checkmate"]

1. d4 {[%clk 0:03:00.9]} 1... Nf6 {[%clk 0:02:59.3]} 2. c4 {[%clk 0:03:00.3]}
2... e6 {[%clk 0:02:58.9]} 3. Nc3 {[%clk 0:02:59.6]} 3... d5 {[%clk 0:02:59.4]}
4. cxd5 {[%clk 0:02:56.5]} 4... exd5 {[%clk 0:03:00.3]} 5. Bg5 {[%clk
0:02:56.6]} 5... c6 {[%clk 0:02:59.4]} 6. e3 {[%clk 0:02:56.9]} 6... h6 {[%clk
0:02:58.2]} 7. Bh4 {[%clk 0:02:56.8]} 7... Be6 {[%clk 0:02:58.1]} 8. Bd3 {[%clk
0:02:52.5]} 8... Nbd7 {[%clk 0:02:58.3]} 9. Nge2 {[%clk 0:02:49.3]} 9... g5
{[%clk 0:02:57.5]} 10. Bg3 {[%clk 0:02:49.3]} 10... Nh5 {[%clk 0:02:58.1]} 11.
Qc2 {[%clk 0:02:45.7]} 11... Nxg3 {[%clk 0:02:56.2]} 12. hxg3 {[%clk 0:02:37.9]}
12... Qa5 {[%clk 0:02:38]} 13. O-O-O {[%clk 0:02:29.6]} 13... O-O-O {[%clk
0:02:37]} 14. Kb1 {[%clk 0:02:26.1]} 14... Kb8 {[%clk 0:02:36.9]} 15. Rc1 {[%clk
0:02:19]} 15... Bg7 {[%clk 0:02:20.2]} 16. Na4 {[%clk 0:02:14.6]} 16... Rc8
{[%clk 0:02:18.7]} 17. Qb3 {[%clk 0:02:06.2]} 17... Rc7 {[%clk 0:02:08.1]} 18.
Nc5 {[%clk 0:01:58.4]} 18... Nxc5 {[%clk 0:02:01.2]} 19. Rxc5 {[%clk 0:01:57.8]}
19... Qb6 {[%clk 0:02:01.2]} 20. Qa4 {[%clk 0:01:47.1]} 20... Bf8 {[%clk
0:01:56.8]} 21. Rc2 {[%clk 0:01:45.3]} 21... Bd7 {[%clk 0:01:32.9]} 22. Nc3
{[%clk 0:01:02]} 22... a6 {[%clk 0:01:23.3]} 23. Qb3 {[%clk 0:00:49.5]} 23...
Qxb3 {[%clk 0:01:22.5]} 24. axb3 {[%clk 0:00:50.4]} 24... b5 {[%clk 0:01:12.8]}
25. Rhc1 {[%clk 0:00:47]} 25... Kb7 {[%clk 0:01:12.2]} 26. Nxd5 {[%clk
0:00:46.1]} 26... Rc8 {[%clk 0:01:09.1]} 27. Nf6 {[%clk 0:00:45.3]} 27... Be6
{[%clk 0:01:04.7]} 28. Be4 {[%clk 0:00:45.6]} 28... Bxb3 {[%clk 0:00:22.6]} 29.
Rxc6 {[%clk 0:00:45.6]} 29... Rxc6 {[%clk 0:00:22.5]} 30. Rxc6 {[%clk
0:00:46.5]} 30... Ka7 {[%clk 0:00:21.3]} 31. Nd7 {[%clk 0:00:42.4]} 31... Be7
{[%clk 0:00:17.7]} 32. Rc7# {[%clk 0:00:42.6]} 1-0

[Event "Early-Titled-Tuesday-Blitz-October-17-2023"]
[Site "Chess.com"]
[Date "2023.10.17"]
[Round "9"]
[White "VincentKeymer"]
[Black "GMKrikor"]
[Result "1-0"]
[WhiteElo "3080"]
[BlackElo "2820"]
[TimeControl "180+1"]
[EndTime "9:47:24 PDT"]
[Termination "VincentKeymer won on time"]

1. Nf3 {[%clk 0:02:55.5]} 1... d5 {[%clk 0:02:57.1]} 2. e3 {[%clk 0:02:55.7]}
2... c5 {[%clk 0:02:47.6]} 3. b3 {[%clk 0:02:55.4]} 3... a6 {[%clk 0:02:47.6]}
4. Bb2 {[%clk 0:02:55.1]} 4... Nc6 {[%clk 0:02:46.9]} 5. g3 {[%clk 0:02:55.7]}
5... Nf6 {[%clk 0:02:40.5]} 6. Bg2 {[%clk 0:02:56.3]} 6... g6 {[%clk 0:02:35.1]}
7. c4 {[%clk 0:02:51.7]} 7... Bg7 {[%clk 0:02:30.2]} 8. cxd5 {[%clk 0:02:51.7]}
8... Qxd5 {[%clk 0:02:31.1]} 9. O-O {[%clk 0:02:51.4]} 9... Qf5 {[%clk
0:02:16.8]} 10. Nc3 {[%clk 0:02:26.2]} 10... O-O {[%clk 0:02:15.8]} 11. Rc1
{[%clk 0:02:26.9]} 11... Nb4 {[%clk 0:01:49.7]} 12. d4 {[%clk 0:02:21.4]} 12...
Rd8 {[%clk 0:01:07.9]} 13. Na4 {[%clk 0:01:33.7]} 13... cxd4 {[%clk 0:00:36]}
14. Nxd4 {[%clk 0:01:31.3]} 14... Qh5 {[%clk 0:00:17.5]} 15. Qxh5 {[%clk
0:01:30]} 15... gxh5 {[%clk 0:00:12.7]} 16. Nb6 {[%clk 0:01:29.7]} 16... Rb8
{[%clk 0:00:11.1]} 17. Ba3 {[%clk 0:01:18.8]} 17... Nbd5 {[%clk 0:00:02.6]} 18.
Bc5 {[%clk 0:00:58.3]} 18... e6 {[%clk 0:00:01.9]} 19. e4 {[%clk 0:00:50.6]}
19... Nxb6 {[%clk 0:00:02.3]} 20. Bxb6 {[%clk 0:00:51.5]} 20... Re8 {[%clk
0:00:02.9]} 21. Rfd1 {[%clk 0:00:50.5]} 21... Nd7 {[%clk 0:00:02.3]} 22. Bc7
{[%clk 0:00:50.1]} 22... Ra8 {[%clk 0:00:02]} 23. Nf3 {[%clk 0:00:49.8]} 23...
Nf6 {[%clk 0:00:01.3]} 24. Nd2 {[%clk 0:00:46.6]} 24... Nd7 {[%clk 0:00:01.1]}
25. Nc4 {[%clk 0:00:46.5]} 25... Rf8 {[%clk 0:00:01.5]} 26. e5 {[%clk
0:00:45.1]} 26... Nc5 {[%clk 0:00:01.6]} 27. Nb6 {[%clk 0:00:44.1]} 1-0